bitfinex-derivatives/quotes_BTCF0:USTF0_20250402
["timestamp","ask_amount","ask_price","bid_price","bid_amount"]
[1743606609527,0.17350545,86400.0,86388.0,0.1204]
[1743606609716,0.1323,86399.0,86388.0,0.1204]
[1743606609921,0.26016575,86399.0,86388.0,0.12104]
[1743606610118,0.26016575,86399.0,86389.0,0.1246]
[1743606610119,0.10152,86398.0,86389.0,0.1246]
[1743606610326,0.10152,86398.0,86389.0,0.0006]
[1743606610524,0.25644581,86397.0,86389.0,0.0006]
[1743606610731,0.25644581,86397.0,86388.0,0.1204]
[1743606610929,0.00648822,86396.0,86388.0,0.1204]
[1743606611331,0.25556297,86395.0,86388.0,0.12108]
[1743606611519,0.25556297,86395.0,86388.0,0.1204]
[1743606611918,0.25556297,86395.0,86389.0,0.1246]
[1743606613632,0.12326297,86395.0,86389.0,0.1146]
[1743606614224,0.26414275,86409.0,86389.0,0.1146]
[1743606614624,0.13103748,86400.0,86389.0,0.1146]
[1743606615025,0.1262,86399.0,86389.0,0.1146]
[1743606615333,0.25254559,86399.0,86389.0,0.1146]
[1743606615532,0.1262,86399.0,86389.0,0.1146]
[1743606615924,0.12634559,86398.0,86388.0,0.1204]
[1743606616127,0.13904559,86398.0,86388.0,0.1204]
[1743606616326,0.1323,86397.0,86388.0,0.1204]
[1743606616537,0.13354001,86397.0,86388.0,0.121]
[1743606616734,0.13125539,86396.0,86388.0,0.121]
[1743606617038,0.13253539,86396.0,86388.0,0.121]
[1743606617247,0.1323,86395.0,86388.0,0.121]
[1743606617432,0.13358,86395.0,86388.0,0.121]
[1743606617634,0.12546606,86394.0,86388.0,0.121]
[1743606617838,0.3608,86391.0,86388.0,0.121]
[1743606618035,0.36212,86391.0,86388.0,0.121]
[1743606618239,0.25776606,86390.0,86388.0,0.121]
[1743606618435,0.25900607,86390.0,86388.0,0.121]
[1743606619034,0.27170607,86390.0,86388.0,0.1204]
[1743606620029,0.27170607,86390.0,86385.0,0.00017353]
[1743606620735,0.00701372,86389.0,86385.0,0.36097353]
[1743606620931,0.002,86396.0,86386.0,0.12]
[1743606621142,0.00124001,86396.0,86388.0,0.3608]
[1743606621339,0.00017353,86402.0,86388.0,0.3614]
[1743606621642,0.00017353,86402.0,86388.0,0.0006]
[1743606621830,0.12908045,86395.0,86388.0,0.0006]
[1743606622034,0.127,86394.0,86388.0,0.0006]
[1743606622249,0.12788001,86394.0,86388.0,0.0006]
[1743606622540,0.12908045,86397.0,86393.0,0.3608]
[1743606622737,0.00060001,86397.0,86394.0,0.1308]
[1743606622947,0.13794275,86410.0,86396.0,0.3608]
[1743606623248,0.00868869,86454.0,86409.0,0.7216]
[1743606623439,0.127,86453.0,86436.0,0.3608]
[1743606623744,0.127,86453.0,86409.0,0.3808]
[1743606623745,0.3608,86440.0,86408.0,0.10064]
[1743606623943,0.3608,86421.0,86411.0,0.1308]
[1743606624246,0.3608,86421.0,86411.0,0.13144]
[1743606624465,0.00064,86421.0,86413.0,0.3608]
[1743606624634,0.00017348,86425.0,86413.0,0.3614]
[1743606624936,0.00081348,86425.0,86413.0,0.3614]
[1743606625143,0.12057456,86424.0,86413.0,0.3614]
[1743606625442,0.12121456,86424.0,86413.0,0.3614]
[1743606625851,0.12121456,86424.0,86414.0,0.1246]
[1743606626034,0.12121456,86424.0,86414.0,0.1340094]
[1743606626339,0.12121456,86424.0,86415.0,0.1217]
[1743606626549,0.12121456,86424.0,86415.0,0.1223]
[1743606626550,0.10032,86423.0,86415.0,0.1223]
[1743606626747,0.3608,86419.0,86398.0,0.3608]
[1743606626943,0.3608,86411.0,86398.0,0.3608]
[1743606627131,0.1251,86410.0,86398.0,0.3608]
[1743606627336,0.38414695,86410.0,86399.0,0.1323]
[1743606627536,0.38414695,86410.0,86391.0,0.3608]
[1743606627735,0.3608,86399.0,86392.0,0.1323]
[1743606628034,0.00088001,86399.0,86392.0,0.13294]
[1743606628230,0.1294303,86398.0,86393.0,0.1317]
[1743606628435,0.1251,86410.0,86394.0,0.1273]
[1743606628639,0.13245673,86409.0,86394.0,0.1279]
[1743606628839,0.00092,86409.0,86399.0,0.17350545]
[1743606629041,0.00092,86409.0,86400.0,0.1273]
[1743606629240,0.00092,86409.0,86408.0,0.3608]
[1743606629648,0.00017362,86411.0,86408.0,0.36144]
[1743606629837,0.00017362,86411.0,86409.0,0.249]
[1743606630048,0.00017362,86411.0,86409.0,0.2496]
[1743606630836,0.00017362,86411.0,86393.0,0.13187362]
[1743606630837,0.12459861,86410.0,86393.0,0.13187362]
[1743606631046,0.123,86409.0,86399.0,0.1219]
[1743606631242,0.2449,86409.0,86400.0,0.132]
[1743606631444,0.2449,86409.0,86400.0,0.1326]
[1743606631445,0.12696916,86408.0,86400.0,0.1326]
[1743606631638,0.12804916,86408.0,86400.0,0.1326]
[1743606632247,0.12804916,86408.0,86390.0,0.17350545]
[1743606632248,0.3608,86401.0,86366.0,0.3608]
[1743606632437,0.3608,86391.0,86386.0,0.1219]
[1743606632643,0.36200001,86391.0,86386.0,0.1225]
[1743606632849,0.13194735,86390.0,86387.0,0.132]
[1743606633151,0.00120001,86390.0,86387.0,0.1326]
[1743606633342,0.00120001,86390.0,86387.0,0.0006]
[1743606633543,0.00120001,86390.0,86363.0,0.3608]
[1743606633544,0.62005291,86389.0,86363.0,0.3608]
[1743606633854,0.30638515,86373.0,86363.0,0.00064]
[1743606634058,0.35442,86372.0,86358.0,0.1214]
[1743606634355,0.48187846,86372.0,86358.0,0.122]
[1743606634652,0.3608,86365.0,86358.0,0.122]
[1743606634856,0.2543,86364.0,86358.0,0.122]
[1743606635056,0.38300162,86364.0,86358.0,0.122]
[1743606636154,0.12870162,86364.0,86363.0,0.3608]
[1743606636341,0.12870162,86364.0,86363.0,0.36148]
[1743606636747,0.00017362,86374.0,86363.0,0.36148]
[1743606636954,0.00017362,86374.0,86372.0,0.3608]
[1743606637142,0.2569,86404.0,86373.0,0.127]
[1743606637343,0.36200001,86392.0,86381.0,0.3608]
[1743606637549,0.36200001,86392.0,86382.0,0.127]
[1743606637747,0.36200001,86392.0,86382.0,0.1282]
[1743606638145,0.00120001,86392.0,86388.0,0.3608]
[1743606638347,0.00017362,86396.0,86389.0,0.127]
[1743606638550,0.12325781,86391.0,86389.0,0.00064]
[1743606638850,0.2569,86390.0,86389.0,0.00064]
[1743606639150,0.2569,86390.0,86379.0,0.2501]
[1743606639151,0.14437812,86390.0,86380.0,0.3608]
[1743606639464,0.14233593,86390.0,86380.0,0.3614]
[1743606639648,0.14113592,86390.0,86380.0,0.3614]
[1743606639952,0.02169753,86389.0,86380.0,0.66778515]
[1743606640156,0.00687621,86389.0,86388.0,0.3608]
[1743606640343,0.00687621,86389.0,86388.0,0.3614]
[1743606640654,0.002,86413.0,86388.0,0.8722]
[1743606640849,0.002,86413.0,86408.0,0.3608]
[1743606640850,0.00120001,86413.0,86408.0,0.3608]
[1743606641152,0.3608,86420.0,86408.0,0.3608]
[1743606641153,0.1228252,86412.0,86409.0,0.2483]
[1743606641337,0.1228252,86412.0,86409.0,0.2489]
[1743606641541,0.59446,86411.0,86391.0,0.3608]
[1743606641741,0.3608,86404.0,86391.0,0.1248]
[1743606641942,0.00136,86404.0,86392.0,0.00017362]
[1743606642157,0.12944708,86403.0,86399.0,0.3608]
[1743606642348,0.13084709,86403.0,86400.0,0.2517]
[1743606642558,0.00140001,86403.0,86400.0,0.2517]
[1743606642744,0.3608,86417.0,86400.0,0.25234]
[1743606643053,0.12299974,86416.0,86408.0,0.3608]
[1743606643246,0.00017362,86419.0,86415.0,0.3608]
[1743606643446,0.00017362,86419.0,86416.0,0.2534]
[1743606643849,0.12430179,86418.0,86416.0,0.2534]
[1743606644250,0.00017362,86419.0,86416.0,0.2534]
[1743606645057,0.12341467,86418.0,86416.0,0.2534]
[1743606645252,0.125,86417.0,86416.0,0.2434]
[1743606645653,0.13091646,86417.0,86416.0,0.2434]
[1743606646163,0.38411646,86418.0,86396.0,0.3608]
[1743606646457,0.1241,86416.0,86405.0,0.3608]
[1743606646664,0.1291,86415.0,86406.0,0.1292]
[1743606646853,0.25310382,86415.0,86406.0,0.1292]
[1743606647056,0.1241,86414.0,86406.0,0.1292]
[1743606647455,0.3608,86412.0,86406.0,0.1292]
[1743606647762,0.2532,86411.0,86406.0,0.00068]
[1743606648061,0.2532,86411.0,86370.0,0.40592172]
[1743606648062,0.38321989,86411.0,86370.0,0.40592172]
[1743606648260,0.38321989,86411.0,86377.0,0.1292]
[1743606648261,0.3608,86396.0,86377.0,0.1292]
[1743606648560,0.3543,86395.0,86377.0,0.2563]
[1743606648748,0.48346336,86395.0,86377.0,0.2563]
[1743606648949,0.63346336,86395.0,86377.0,0.1292]
[1743606649266,0.3608,86382.0,86377.0,0.1292]
[1743606649455,0.36236001,86382.0,86378.0,0.1212]
[1743606649653,0.25198317,86381.0,86378.0,0.1212]
[1743606649857,0.13162318,86381.0,86380.0,0.3608]
[1743606650057,0.002,86404.0,86380.0,0.4608]
[1743606650261,0.122,86403.0,86399.0,0.3608]
[1743606650454,0.122,86403.0,86400.0,0.1316]
[1743606650455,0.00017362,86401.0,86400.0,0.1316]
[1743606650868,0.48203414,86401.0,86392.0,0.00017362]
[1743606651064,0.3608,86393.0,86392.0,0.00017362]
[1743606651453,0.48613519,86393.0,86392.0,0.00017362]
[1743606652862,0.49280901,86393.0,86392.0,0.00017362]
[1743606653262,0.49280901,86393.0,86365.0,0.1308]
[1743606653465,0.3608,86383.0,86370.0,0.3608]
[1743606653667,0.2617,86382.0,86371.0,0.1231]
[1743606653969,0.12171012,86382.0,86378.0,0.3608]
[1743606654167,0.12171012,86382.0,86379.0,0.1231]
[1743606654370,0.12171012,86391.0,86379.0,0.2501]
[1743606654868,0.1319,86391.0,86379.0,0.2501]
[1743606655069,0.26488555,86391.0,86379.0,0.2501]
[1743606655272,0.1319,86391.0,86388.0,0.3608]
[1743606655466,0.3608,86398.0,86389.0,0.2582]
[1743606655671,0.49333319,86390.0,86389.0,0.2582]
[1743606655877,0.36188001,86390.0,86389.0,0.0006]
[1743606656060,0.36844701,86390.0,86372.0,0.2582]
[1743606656364,0.2573,86389.0,86372.0,0.3588]
[1743606656573,0.25842001,86389.0,86372.0,0.3588]
[1743606656768,0.12556095,86388.0,86379.0,0.17378941]
[1743606657071,0.1273,86399.0,86385.0,0.3608]
[1743606657370,0.00108001,86399.0,86393.0,0.3608]
[1743606657666,0.00108001,86399.0,86394.0,0.256]
[1743606657667,0.12399087,86399.0,86394.0,0.256]
[1743606657863,0.12399087,86399.0,86394.0,0.2566]
[1743606658463,0.2558,86398.0,86394.0,0.2566]
[1743606658665,0.25688001,86398.0,86394.0,0.2566]
[1743606658872,0.12869364,86397.0,86394.0,0.1249]
[1743606659071,0.13654814,86397.0,86395.0,0.122]
[1743606659270,0.26564814,86397.0,86395.0,0.1226]
[1743606659467,0.39234814,86397.0,86396.0,0.1243]
[1743606659667,0.26564814,86397.0,86396.0,0.1249]
[1743606659866,0.25887365,86397.0,86396.0,0.1249]
[1743606660572,0.25887365,86397.0,86396.0,0.0006]
[1743606660767,0.61967365,86397.0,86387.0,0.1291]
[1743606661074,0.61967365,86397.0,86390.0,0.3608]
[1743606661075,0.26560421,86397.0,86390.0,0.3608]
[1743606661265,0.26560421,86397.0,86390.0,0.3614]
[1743606661463,0.3608,86392.0,86390.0,0.0006]
[1743606661768,0.4851,86391.0,86390.0,0.0006]
[1743606661981,0.38212794,86391.0,86387.0,0.1291]
[1743606662174,0.13072794,86391.0,86388.0,0.1215]
[1743606662369,0.12964793,86391.0,86388.0,0.12214]
[1743606662574,0.2514,86400.0,86390.0,0.3608]
[1743606662772,0.00112001,86400.0,86397.0,0.3608]
[1743606662972,0.002,86409.0,86398.0,0.2506]
[1743606663181,0.00112001,86409.0,86408.0,0.3608]
[1743606663477,0.00108001,86409.0,86408.0,0.4714]
[1743606663681,0.17256204,86420.0,86408.0,0.4714]
[1743606663980,0.17256204,86420.0,86408.0,0.48205373]
[1743606664278,0.17256204,86420.0,86409.0,0.2526]
[1743606664479,0.00017362,86418.0,86409.0,0.2532]
[1743606664684,0.12959465,86410.0,86409.0,0.2532]
[1743606664983,0.13071466,86410.0,86409.0,0.26173116]
[1743606665472,0.13071466,86410.0,86409.0,0.1247]
[1743606665666,0.38711466,86410.0,86409.0,0.1247]
[1743606665871,0.74791466,86410.0,86409.0,0.1241]
[1743606666074,0.74791466,86410.0,86402.0,0.1285]
[1743606666375,0.13071466,86410.0,86404.0,0.3608]
[1743606666681,0.13071466,86410.0,86404.0,0.36188]
[1743606666988,0.3608,86406.0,86384.0,0.3608]
[1743606667175,0.2664,86405.0,86392.0,0.2539]
[1743606667474,0.39505905,86405.0,86392.0,0.26342293]
[1743606667875,0.12865905,86405.0,86404.0,0.3608]
[1743606668175,0.27370509,86432.0,86404.0,0.48148]
[1743606668373,0.20790986,86416.0,86415.0,0.3608]
[1743606668568,0.00906987,86416.0,86415.0,0.3614]
[1743606668773,0.00714985,86416.0,86415.0,0.3614]
[1743606668969,0.00714985,86433.0,86415.0,0.4614]
[1743606669171,0.00714985,86433.0,86432.0,0.3608]
[1743606669371,0.12789198,86440.0,86432.0,0.4214]
[1743606669572,0.24045197,86447.0,86439.0,0.3608]
[1743606669883,0.12430818,86446.0,86440.0,0.1319]
[1743606670074,0.24149198,86447.0,86440.0,0.1319]
[1743606670295,0.12430818,86446.0,86440.0,0.1319]
[1743606670482,0.12430818,86446.0,86440.0,0.4927]
[1743606670670,0.24053197,86447.0,86440.0,0.4933]
[1743606671075,0.12179173,86446.0,86440.0,0.4933]
[1743606671280,0.12179173,86446.0,86434.0,0.00017362]
[1743606671281,0.24675174,86446.0,86434.0,0.00017362]
[1743606671470,0.1329,86445.0,86435.0,0.3608]
[1743606671677,0.24579173,86446.0,86436.0,0.1255]
[1743606671880,0.12446575,86444.0,86436.0,0.256]
[1743606672073,0.124,86443.0,86436.0,0.256]
[1743606672278,0.2569,86443.0,86436.0,0.256]
[1743606672478,0.12446575,86442.0,86436.0,0.256]
[1743606672880,0.263,86441.0,86436.0,0.256]
[1743606673274,0.13392929,86440.0,86436.0,0.256]
[1743606673675,0.1301,86441.0,86436.0,0.256]
[1743606675379,0.13126,86441.0,86436.0,0.25664]
[1743606676680,0.1302,86440.0,86436.0,0.25664]
[1743606676878,0.25905906,86440.0,86436.0,0.25664]
[1743606677075,0.1223,86439.0,86436.0,0.25664]
[1743606677275,0.12350001,86439.0,86436.0,0.00064]
[1743606677575,0.25789906,86438.0,86436.0,0.00064]
[1743606677771,0.25901907,86438.0,86434.0,0.00017362]
[1743606677976,0.1223,86437.0,86434.0,0.00077362]
[1743606678176,0.12342001,86437.0,86435.0,0.3608]
[1743606678486,0.00017362,86452.0,86436.0,0.2435]
[1743606678674,0.00105362,86452.0,86451.0,0.3608]
[1743606678876,0.00017362,86452.0,86451.0,0.3614]
[1743606679287,0.3608,86489.0,86451.0,0.7222]
[1743606679488,0.3608,86489.0,86464.0,0.3608]
[1743606679787,0.2431,86488.0,86472.0,0.3608]
[1743606680084,0.36773789,86488.0,86473.0,0.1244]
[1743606680281,0.12463789,86488.0,86473.0,0.25794]
[1743606680483,0.12463789,86488.0,86479.0,0.3608]
[1743606680685,0.1202,86487.0,86480.0,0.2573]
[1743606680985,0.24378,86487.0,86480.0,0.25798]
[1743606681180,0.1310812,86486.0,86480.0,0.25798]
[1743606681376,0.36097351,86489.0,86480.0,0.00068]
[1743606681584,0.00060001,86486.0,86481.0,0.2573]
[1743606681784,0.13019347,86486.0,86481.0,0.2579]
[1743606681977,0.00060001,86486.0,86485.0,0.3608]
[1743606682173,0.00017351,86489.0,86485.0,0.00068]
[1743606682387,0.12627352,86489.0,86485.0,0.00068]
[1743606683184,0.12627352,86489.0,86472.0,0.00017351]
[1743606683185,0.12625803,86488.0,86472.0,0.00017351]
[1743606683494,0.3608,86476.0,86445.0,0.3608]
[1743606683683,0.3608,86466.0,86457.0,0.00886071]
[1743606683882,0.3608,86466.0,86445.0,0.37145338]
[1743606684084,0.74418214,86465.0,86452.0,0.3608]
[1743606684389,0.74518214,86465.0,86453.0,0.251]
[1743606684588,0.74518214,86465.0,86453.0,0.25168]
[1743606684883,0.74518214,86465.0,86453.0,0.00068]
[1743606685084,0.3608,86454.0,86450.0,0.00017351]
[1743606685275,0.2451,86453.0,86450.0,0.00077351]
[1743606685479,0.3672387,86453.0,86450.0,0.00077351]
[1743606686183,0.122,86452.0,86450.0,0.00077351]
[1743606686388,0.09892,86451.0,86450.0,0.00017351]
[1743606686588,0.47043839,86451.0,86450.0,0.00077351]
[1743606687078,0.83123839,86451.0,86442.0,0.27068657]
[1743606687283,0.3608,86443.0,86425.0,0.40592172]
[1743606687485,0.3608,86435.0,86423.0,0.00173541]
[1743606687787,0.34174,86434.0,86423.0,0.00173541]
[1743606687987,0.47758914,86434.0,86423.0,0.00173541]
[1743606688495,0.131,86433.0,86423.0,0.00173541]
[1743606688682,0.13256001,86433.0,86423.0,0.00173541]
[1743606688886,0.3608,86428.0,86420.0,0.00017351]
[1743606689087,0.3608,86421.0,86401.0,0.3608]
[1743606689286,0.3608,86412.0,86401.0,0.3608]
[1743606689493,0.2527,86411.0,86401.0,0.3608]
[1743606689789,0.12138424,86411.0,86401.0,0.3608]
[1743606689993,0.2527,86418.0,86401.0,0.3608]
[1743606690198,0.25426001,86418.0,86401.0,0.3608]
[1743606690396,0.37564425,86418.0,86402.0,0.00017351]
[1743606691297,0.37564425,86418.0,86390.0,0.3608]
[1743606691298,0.3608,86407.0,86390.0,0.3608]
[1743606691598,0.3608,86391.0,86374.0,0.3608]
[1743606691790,0.3608,86391.0,86374.0,0.37160333]
[1743606691791,0.2498,86390.0,86374.0,0.37160333]
[1743606692096,0.37356965,86390.0,86374.0,0.37160333]
[1743606692294,0.37512966,86390.0,86374.0,0.37160333]
[1743606692495,0.37512966,86390.0,86372.0,0.2539]
[1743606692792,0.37512966,86390.0,86373.0,0.00011606]
[1743606693299,0.3608,86387.0,86373.0,0.00011606]
[1743606693498,0.3608,86379.0,86373.0,0.00011606]
[1743606693699,0.126,86378.0,86373.0,0.00011606]
[1743606693896,0.3708618,86378.0,86373.0,0.00011606]
[1743606694294,0.37242181,86378.0,86375.0,0.3608]
[1743606694499,0.37242181,86378.0,86376.0,0.2423]
[1743606694695,0.24642181,86378.0,86376.0,0.2423]
[1743606694905,0.1326,86399.0,86377.0,0.3608]
[1743606695095,0.3608,86414.0,86390.0,0.3608]
[1743606695300,0.00108001,86414.0,86413.0,0.3608]
[1743606695496,0.3608,86438.0,86413.0,0.3608]
[1743606695701,0.3608,86438.0,86431.0,0.3608]
[1743606695702,0.36188001,86438.0,86431.0,0.3608]
[1743606695898,0.12699016,86437.0,86431.0,0.3608]
[1743606696197,0.12815016,86437.0,86431.0,0.3608]
[1743606697409,0.09748,86464.0,86436.0,0.3608]
[1743606697706,0.30574598,86460.0,86439.0,0.3608]
[1743606697895,0.12203211,86441.0,86440.0,0.2609]
[1743606698207,0.30574598,86450.0,86440.0,0.2609]
[1743606698503,0.30574598,86450.0,86439.0,0.3608]
[1743606698504,0.38008243,86441.0,86439.0,0.3608]
[1743606698896,0.3714533,86467.0,86439.0,0.3608]
[1743606699209,0.2568,86460.0,86440.0,0.2609]
[1743606699407,0.2568,86460.0,86459.0,0.3608]
[1743606699811,0.3807003,86460.0,86459.0,0.3608]
[1743606700011,0.8915003,86460.0,86447.0,0.3608]
[1743606700305,0.10382623,86459.0,86451.0,0.00017351]
[1743606700498,0.10454623,86459.0,86451.0,0.00077351]
[1743606700701,0.38334958,86458.0,86451.0,0.00077351]
[1743606700906,0.3608,86452.0,86451.0,0.00077351]
[1743606701100,0.09812,86452.0,86451.0,0.00017351]
[1743606701413,0.23251581,86452.0,86451.0,0.00017351]
[1743606701805,0.13515581,86452.0,86451.0,0.00017351]
[1743606702017,0.49595581,86452.0,86451.0,0.00017351]
[1743606702609,0.48960958,86452.0,86451.0,0.00017351]
[1743606702808,0.63960958,86452.0,86451.0,0.00017351]
[1743606703006,0.63960958,86452.0,86403.0,0.3608]
[1743606703322,0.3608,86417.0,86404.0,0.1313]
[1743606703615,0.00076,86417.0,86413.0,0.3608]
[1743606703819,0.45824,86430.0,86414.0,0.2543]
[1743606704016,0.09816,86430.0,86423.0,0.3608]
[1743606704319,0.12299955,86429.0,86424.0,0.2543]
[1743606704515,0.12299955,86429.0,86424.0,0.2549]
[1743606704823,0.1215,86428.0,86424.0,0.2549]
[1743606705012,0.12222,86428.0,86424.0,0.2549]
[1743606705214,0.12860871,86427.0,86424.0,0.2549]
[1743606705521,0.12932871,86427.0,86424.0,0.2549]
[1743606705710,0.12860871,86427.0,86424.0,0.2549]
[1743606706224,0.12249866,86434.0,86424.0,0.1236]
[1743606706413,0.2518,86426.0,86424.0,0.1236]
[1743606706614,0.13102,86426.0,86424.0,0.1236]
[1743606706815,0.00072,86426.0,86425.0,0.1213]
[1743606707016,0.00017351,86435.0,86425.0,0.1219]
[1743606707217,0.00093351,86435.0,86425.0,0.1219]
[1743606707522,0.13329463,86434.0,86425.0,0.1219]
[1743606707827,0.3608,86426.0,86413.0,0.3608]
[1743606708015,0.3608,86414.0,86413.0,0.00068]
[1743606708220,0.36172,86414.0,86398.0,0.1213]
[1743606708421,0.3608,86399.0,86398.0,0.1219]
[1743606708726,0.36196,86399.0,86398.0,0.1219]
[1743606709126,0.00116,86399.0,86398.0,0.1219]
[1743606709430,0.49072951,86399.0,86398.0,0.1219]
[1743606709735,0.49072951,86399.0,86398.0,0.0006]
[1743606710029,0.49072951,86399.0,86390.0,0.00011626]
[1743606710030,0.49184952,86399.0,86391.0,0.1274]
[1743606710229,0.3608,86392.0,86391.0,0.2507]
[1743606710422,0.00112001,86392.0,86391.0,0.2513]
[1743606710621,0.13331672,86392.0,86391.0,0.2513]
[1743606714020,0.00112001,86392.0,86391.0,0.2513]
[1743606714220,0.3608,86399.0,86391.0,0.2513]
[1743606714526,0.36192001,86399.0,86391.0,0.2513]
[1743606714729,0.12432565,86398.0,86391.0,0.2513]
[1743606714931,0.12544566,86398.0,86391.0,0.2513]
[1743606716126,0.3608,86395.0,86391.0,0.2513]
[1743606716318,0.36200001,86395.0,86391.0,0.2513]
[1743606716716,0.00017361,86407.0,86393.0,0.3608]
[1743606717025,0.00017361,86407.0,86404.0,0.3608]
[1743606717224,0.00017361,86407.0,86405.0,0.26]
[1743606717422,0.00017361,86407.0,86405.0,0.2606]
[1743606720031,0.13308604,86406.0,86405.0,0.2606]
[1743606720331,0.13384604,86406.0,86405.0,0.2606]
[1743606720827,0.13384604,86406.0,86405.0,0.2506]
[1743606721817,0.00076,86406.0,86405.0,0.6114]
[1743606722020,0.20614041,86430.0,86405.0,0.8714]
[1743606722222,0.3608,86446.0,86423.0,0.7216]
[1743606722223,0.13790637,86438.0,86423.0,0.7216]
[1743606722416,0.13790637,86438.0,86436.0,0.3608]
[1743606722625,0.13874637,86438.0,86437.0,0.1263]
[1743606722919,0.17238297,86443.0,86437.0,0.12722]
[1743606723118,0.17350298,86443.0,86438.0,0.1255]
[1743606723321,0.17350298,86443.0,86438.0,0.12658]
[1743606723522,0.12184948,86442.0,86439.0,0.1263]
[1743606723821,0.00108001,86442.0,86439.0,0.12738]
[1743606724326,0.00108001,86442.0,86429.0,0.00017361]
[1743606724327,0.13423161,86441.0,86429.0,0.00017361]
[1743606724626,0.553,86430.0,86404.0,0.01089173]
[1743606724926,0.17369076,86414.0,86405.0,0.126]
[1743606725235,0.17369076,86414.0,86405.0,0.12676]
[1743606725236,0.17445076,86414.0,86405.0,0.12676]
[1743606725436,0.38674594,86413.0,86405.0,0.12676]
[1743606725729,0.38750594,86413.0,86405.0,0.12676]
[1743606726242,0.38750594,86413.0,86406.0,0.1289]
[1743606726422,0.38750594,86413.0,86406.0,0.1297]
[1743606726622,0.00657632,86412.0,86406.0,0.46903478]
[1743606726926,0.00733632,86412.0,86406.0,0.46903478]
[1743606727122,0.12950018,86411.0,86406.0,0.46903478]
[1743606727329,0.12950018,86411.0,86401.0,0.00011626]
[1743606727330,0.57686018,86411.0,86401.0,0.00011626]
[1743606727536,0.57686018,86411.0,86401.0,0.0006]
[1743606727537,0.553,86402.0,86401.0,0.0006]
[1743606727834,0.00064,86402.0,86401.0,0.0006]
[1743606728035,0.12247968,86402.0,86401.0,0.0006]
[1743606728226,0.12899705,86402.0,86401.0,0.2578]
[1743606728424,0.00715737,86402.0,86401.0,0.0006]
[1743606728630,0.49987794,86402.0,86401.0,0.0006]
[1743606728820,0.50055794,86402.0,86401.0,0.0006]
[1743606729627,0.15030639,86402.0,86401.0,0.0006]
[1743606730341,0.50055794,86402.0,86401.0,0.0006]
[1743606730643,0.50055794,86402.0,86384.0,0.2643]
[1743606730835,0.3608,86394.0,86384.0,0.2649]
[1743606731032,0.36144,86394.0,86384.0,0.2649]
[1743606731227,0.38778446,86393.0,86384.0,0.2649]
[1743606731433,0.38842446,86393.0,86384.0,0.2649]
[1743606731936,0.13252446,86393.0,86389.0,0.3608]
[1743606732140,0.00651737,86392.0,86390.0,0.2567]
[1743606732330,0.00651737,86392.0,86390.0,0.25738]
[1743606732531,0.00715737,86392.0,86390.0,0.25738]
[1743606732741,0.12052691,86391.0,86390.0,0.25738]
[1743606732949,0.48196691,86391.0,86390.0,0.00068]
[1743606733240,0.73786691,86391.0,86383.0,0.00173625]
[1743606733428,0.3608,86384.0,86383.0,0.00173625]
[1743606733635,0.3608,86384.0,86352.0,0.3608]
[1743606733636,0.72232,86384.0,86352.0,0.3608]
[1743606733837,0.30609954,86362.0,86352.0,0.00064]
[1743606734034,0.34246,86361.0,86338.0,0.27065682]
[1743606734338,0.37974731,86361.0,86338.0,0.2604]
[1743606734538,0.3608,86356.0,86338.0,0.2604]
[1743606734735,0.2459,86355.0,86338.0,0.2604]
[1743606734939,0.3608,86348.0,86338.0,0.2604]
[1743606735141,0.00072,86348.0,86338.0,0.2604]
[1743606735342,0.25239179,86347.0,86338.0,0.2604]
[1743606735545,0.1219,86346.0,86338.0,0.2604]
[1743606735743,0.12254,86346.0,86338.0,0.2604]
[1743606735944,0.1288266,86345.0,86338.0,0.2604]
[1743606736146,0.1295466,86345.0,86338.0,0.2604]
[1743606736547,0.00669939,86344.0,86338.0,0.2604]
[1743606736843,0.13038052,86344.0,86343.0,0.3608]
[1743606737143,0.12304113,86344.0,86343.0,0.3614]
[1743606737337,0.12304113,86344.0,86343.0,0.0006]
[1743606737543,0.12368113,86344.0,86343.0,0.3614]
[1743606737729,0.12304113,86344.0,86343.0,0.0006]
[1743606737935,0.00064,86344.0,86336.0,0.2427]
[1743606738243,0.12712931,86343.0,86336.0,0.2433]
[1743606738439,0.12784931,86343.0,86342.0,0.3608]
[1743606738751,0.00017372,86349.0,86342.0,0.3614]
[1743606738938,0.00081372,86349.0,86343.0,0.2427]
[1743606739139,0.13316161,86348.0,86343.0,0.24334]
[1743606739346,0.13380161,86348.0,86343.0,0.24334]
[1743606739738,0.3608,86347.0,86343.0,0.24334]
[1743606740046,0.36821256,86347.0,86343.0,0.24334]
[1743606740246,0.12844391,86346.0,86343.0,0.24334]
[1743606740454,0.12908391,86346.0,86343.0,0.24334]
[1743606740637,0.00677256,86345.0,86343.0,0.24334]
[1743606740839,0.00741256,86345.0,86343.0,0.24334]
[1743606741134,0.00741256,86345.0,86343.0,0.00064]
[1743606741135,0.12392474,86344.0,86343.0,0.00064]
[1743606741335,0.25474474,86344.0,86314.0,0.1223]
[1743606741552,0.30609954,86324.0,86315.0,0.1243]
[1743606741749,0.3471,86323.0,86315.0,0.1243]
[1743606742043,0.47720691,86323.0,86315.0,0.0006]
[1743606742257,0.47720691,86323.0,86306.0,0.2466]
[1743606742445,0.47720691,86323.0,86309.0,0.3608]
[1743606742636,0.47720691,86323.0,86309.0,0.36144]
[1743606743348,0.26020691,86323.0,86309.0,0.36144]
[1743606743538,0.3608,86316.0,86309.0,0.36144]
[1743606743740,0.36144,86316.0,86309.0,0.36144]
[1743606743950,0.37490978,86315.0,86309.0,0.36144]
[1743606744147,0.37554978,86315.0,86309.0,0.36144]
[1743606744446,0.37554978,86315.0,86309.0,0.00064]
[1743606744447,0.3608,86310.0,86309.0,0.00064]
[1743606744638,0.3608,86310.0,86302.0,0.00173788]
[1743606744639,0.45712,86310.0,86302.0,0.00173788]
[1743606744833,0.3608,86303.0,86302.0,0.00173788]
[1743606745049,0.36144,86303.0,86302.0,0.00173788]
[1743606745249,0.48893051,86303.0,86302.0,0.00173788]